{"text_format":"1","workbook":"xlsx","n_sheets":14,"sheets":["Organisateur","RAPPORT","SCC","CODE FCI","1","2","3","4","5","6","7","8","9","10"],"not_rendered":{"charts":0,"images":2,"macros":0,"external_links":0,"defined_names":3,"comments":0,"pivot_tables":0},"unopened":[],"bounds":{"document_bytes":16777216,"sheet_cells":100000,"rows_first":2000,"rows_last":500,"rows_between":2000,"halvings":0,"cell_chars":16384,"cell_head_chars":4096},"cells_cut":0,"cells_raw":0,"read":"whole","date_system":"1900"}

{"sheet":"Organisateur","index":0,"n_rows":11,"n_cols":2,"rows_kept":11,"cut":false,"hidden":false,"merged":[[8,1,8,2]]}
[]
[null,"IHWT"]
[]
["Event / Evénement:","IHWT CS"]
["Place / Lieu:"]
["Date:"]
["Organizer / Organisateur:"]
[]
["Judge "]
[]
["Remplir les cases en gris"]

{"sheet":"RAPPORT","index":1,"n_rows":21,"n_cols":14,"rows_kept":21,"cut":false,"hidden":false,"merged":[[8,0,8,13]]}
[]
[]
[]
["Event / Evénement:",{"$f":"Organisateur!B4","v":"IHWT CS"}]
["Place / Lieu:",{"$f":"Organisateur!B5","v":0}]
["Date:",{"$f":"Organisateur!B6","v":0}]
["Organizer / Organisateur:",{"$f":"Organisateur!B7","v":0}]
[]
[{"$f":"Organisateur!$B$4","v":"IHWT CS"}]
["Conducteur","Propriétaire","Nom du chien","Codes FCI","Race","M/F","Né le","LOF","Pédigrée","Puce","Pays","Start No","Résultat","Qualif"]
[null,null,null,297,null,null,null,null,null,null,null,null,{"$f":"'1'!$D$28","v":"-"},{"$f":"IF(M11=\"-\",\"-\",IF(M11>89.9999,\"EXCELLENT\",IF(M11>79.9999,\"TRES BON\",IF(M11>69.999,\"BON\",IF(M11>59.999,\"satisfaisant\",\" - \")))))","v":"-"}]
[null,null,null,297,null,null,null,null,null,null,null,null,{"$f":"'2'!$D$28","v":"-"},"-"]
[null,null,null,297,null,null,null,null,null,null,null,null,{"$f":"'3'!$D$28","v":"-"},"-"]
[null,null,null,297,null,null,null,null,null,null,null,null,{"$f":"'4'!$D$28","v":"-"},"-"]
[null,null,null,297,null,null,null,null,null,null,null,null,{"$f":"'5'!$D$28","v":"-"},"-"]
[null,null,null,297,null,null,null,null,null,null,null,null,{"$f":"'6'!$D$28","v":"-"},{"$f":"IF(M16=\"-\",\"-\",IF(M16>89.9999,\"EXCELLENT\",IF(M16>79.9999,\"TRES BON\",IF(M16>69.999,\"BON\",IF(M16>59.999,\"satisfaisant\",\" - \")))))","v":"-"}]
[null,null,null,297,null,null,null,null,null,null,null,null,{"$f":"'7'!$D$28","v":"-"},"-"]
[null,null,null,297,null,null,null,null,null,null,null,null,{"$f":"'8'!$D$28","v":"-"},"-"]
[null,null,null,297,null,null,null,null,null,null,null,null,{"$f":"'9'!$D$28","v":"-"},{"$f":"IF(M19=\"-\",\"-\",IF(M19>89.9999,\"EXCELLENT\",IF(M19>79.9999,\"TRES BON\",IF(M19>69.999,\"BON\",IF(M19>59.999,\"satisfaisant\",\" - \")))))","v":"-"}]
[null,null,null,297,null,null,null,null,null,null,null,null,{"$f":"'10'!$D$28","v":"-"},"-"]
[null,null,null,null,null,null,null,null,null,null,null,null,{"$f":"'10'!$D$27","v":""},{"$f":"IF(M21=\"-\",\"-\",IF(M21>89.9999,\"EXCELLENT\",IF(M21>79.9999,\"TRES BON\",IF(M21>69.999,\"BON\",IF(M21>59.999,\"satisfaisant\",\" - \")))))","v":"EXCELLENT"}]

{"sheet":"SCC","index":2,"n_rows":11,"n_cols":9,"rows_kept":11,"cut":false,"hidden":true,"merged":[]}
["DATE","ORGANISATEUR","Code Race FCI","LO","NUMERO","IDENTIFIANT","RESULTAT","NIVEAU","COMMENTAIRE"]
[{"$f":"Organisateur!$B$6","v":0},{"$f":"Organisateur!$B$7","v":0},{"$f":"RAPPORT!D11","v":297},null,{"$f":"RAPPORT!I11","v":0},{"$f":"RAPPORT!J11","v":0},{"$f":"'1'!$D$28","v":"-"},{"$f":"Organisateur!$B$4","v":"IHWT CS"},{"$f":"CONCATENATE(RAPPORT!B11,\"-\",RAPPORT!C11)","v":"-"}]
[{"$f":"Organisateur!$B$6","v":0},{"$f":"Organisateur!$B$7","v":0},{"$f":"RAPPORT!D12","v":297},null,{"$f":"RAPPORT!I12","v":0},{"$f":"RAPPORT!J12","v":0},{"$f":"'2'!$D$28","v":"-"},{"$f":"Organisateur!$B$4","v":"IHWT CS"},{"$f":"CONCATENATE(RAPPORT!B12,\"-\",RAPPORT!C12)","v":"-"}]
[{"$f":"Organisateur!$B$6","v":0},{"$f":"Organisateur!$B$7","v":0},{"$f":"RAPPORT!D13","v":297},null,{"$f":"RAPPORT!I13","v":0},{"$f":"RAPPORT!J13","v":0},{"$f":"'3'!$D$28","v":"-"},{"$f":"Organisateur!$B$4","v":"IHWT CS"},{"$f":"CONCATENATE(RAPPORT!B13,\"-\",RAPPORT!C13)","v":"-"}]
[{"$f":"Organisateur!$B$6","v":0},{"$f":"Organisateur!$B$7","v":0},{"$f":"RAPPORT!D14","v":297},null,{"$f":"RAPPORT!I14","v":0},{"$f":"RAPPORT!J14","v":0},{"$f":"'4'!$D$28","v":"-"},{"$f":"Organisateur!$B$4","v":"IHWT CS"},{"$f":"CONCATENATE(RAPPORT!B14,\"-\",RAPPORT!C14)","v":"-"}]
[{"$f":"Organisateur!$B$6","v":0},{"$f":"Organisateur!$B$7","v":0},{"$f":"RAPPORT!D15","v":297},null,{"$f":"RAPPORT!I15","v":0},{"$f":"RAPPORT!J15","v":0},{"$f":"'5'!$D$28","v":"-"},{"$f":"Organisateur!$B$4","v":"IHWT CS"},{"$f":"CONCATENATE(RAPPORT!B15,\"-\",RAPPORT!C15)","v":"-"}]
[{"$f":"Organisateur!$B$6","v":0},{"$f":"Organisateur!$B$7","v":0},{"$f":"RAPPORT!D16","v":297},null,{"$f":"RAPPORT!I16","v":0},{"$f":"RAPPORT!J16","v":0},{"$f":"'6'!$D$28","v":"-"},{"$f":"Organisateur!$B$4","v":"IHWT CS"},{"$f":"CONCATENATE(RAPPORT!B16,\"-\",RAPPORT!C16)","v":"-"}]
[{"$f":"Organisateur!$B$6","v":0},{"$f":"Organisateur!$B$7","v":0},{"$f":"RAPPORT!D17","v":297},null,{"$f":"RAPPORT!I17","v":0},{"$f":"RAPPORT!J17","v":0},{"$f":"'7'!$D$28","v":"-"},{"$f":"Organisateur!$B$4","v":"IHWT CS"},{"$f":"CONCATENATE(RAPPORT!B17,\"-\",RAPPORT!C17)","v":"-"}]
[{"$f":"Organisateur!$B$6","v":0},{"$f":"Organisateur!$B$7","v":0},{"$f":"RAPPORT!D18","v":297},null,{"$f":"RAPPORT!I18","v":0},{"$f":"RAPPORT!J18","v":0},{"$f":"'8'!$D$28","v":"-"},{"$f":"Organisateur!$B$4","v":"IHWT CS"},{"$f":"CONCATENATE(RAPPORT!B18,\"-\",RAPPORT!C18)","v":"-"}]
[{"$f":"Organisateur!$B$6","v":0},{"$f":"Organisateur!$B$7","v":0},{"$f":"RAPPORT!D19","v":297},null,{"$f":"RAPPORT!I20","v":0},{"$f":"RAPPORT!J20","v":0},{"$f":"'10'!$D$28","v":"-"},{"$f":"Organisateur!$B$4","v":"IHWT CS"},{"$f":"CONCATENATE(RAPPORT!B19,\"-\",RAPPORT!C19)","v":"-"}]
[{"$f":"Organisateur!$B$6","v":0},{"$f":"Organisateur!$B$7","v":0},{"$f":"RAPPORT!D20","v":297},null,{"$f":"RAPPORT!I21","v":0},{"$f":"RAPPORT!J21","v":0},{"$f":"'10'!$D$28","v":"-"},{"$f":"Organisateur!$B$4","v":"IHWT CS"},{"$f":"CONCATENATE(RAPPORT!B20,\"-\",RAPPORT!C20)","v":"-"}]

{"sheet":"CODE FCI","index":3,"n_rows":355,"n_cols":4,"rows_kept":355,"cut":false,"hidden":true,"merged":[]}
[]
[null," NOMS DE RACE FCI    (liste à jour au 28 mai 2015)","CODES RACE\nFCI"," NOMS DE RACE EN LANGUE D'ORIGINE"]
[null,"AFFENPINSCHER",186,"AFFENPINSCHER"]
[null,"AIREDALE TERRIER",7,"AIREDALE TERRIER"]
[null,"AKITA",255,"AKITA"]
[null,"AKITA AMERICAIN",344,"AMERICAN AKITA"]
[null,"ANGLO FRANCAIS DE PETITE VENERIE",325,"ANGLO FRANCAIS DE PETITE VENERIE"]
[null,"ARIEGEOIS",20,"ARIEGEOIS"]
[null,"AZAWAKH",307,"AZAWAKH"]
[null,"BANGKAEW DE THAILANDE",358,"THAI BANGKAEW DOG"]
[null,"BARBET",105,"BARBET"]
[null,"BARBU TCHEQUE",245,"CESKY FOUSEK"]
[null,"BARZOÏ",193,"RUSSKAYA PSOVAYA BORZAYA"]
[null,"BASENJI",43,"BASENJI"]
[null,"BASSET ARTESIEN NORMAND",34,"BASSET ARTESIEN NORMAND"]
[null,"BASSET BLEU DE GASCOGNE",35,"BASSET BLEU DE GASCOGNE"]
[null,"BASSET DE WESTPHALIE",100,"WESTFÄLISCHE DACHSBRACKE"]
[null,"BASSET DES ALPES",254,"ALPENLÄNDISCHE DACHSBRACKE"]
[null,"BASSET FAUVE DE BRETAGNE",36,"BASSET FAUVE DE BRETAGNE"]
[null,"BASSET HOUND",163,"BASSET HOUND"]
[null,"BASSET SUEDOIS",130,"DREVER"]
[null,"BEAGLE",161,"BEAGLE"]
[null,"BEAGLE HARRIER",290,"BEAGLE HARRIER"]
[null,"BEARDED COLLIE",271,"BEARDED COLLIE"]
[null,"BEDLINGTON TERRIER",9,"BEDLINGTON TERRIER"]
[null,"BERGER ALLEMAND",166,"DEUTSCHER SCHÄFERHUND"]
[null,"BERGER AMERICAIN MINIATURE",916,"AMERICAN SHEPERD MINIATURE"]
[null,"BERGER AUSTRALIEN",342,"AUSTRALIAN SHEPHERD"]
[null,"BERGER BERGAMASQUE",194,"CANE DA PASTORE BERGAMASCO"]
[null,"BERGER BLANC SUISSE",347,"BERGER BLANC SUISSE / WEISSER SCHWEIZER SCHAFERHUND"]
[null,"BERGER D'ASIE CENTRALE",335,"SREDNEASIATSKAÏA OVTCHARKA"]
[null,"BERGER DE BEAUCE",44,"BERGER DE BEAUCE"]
[null,"BERGER DE BOSNIE-HERZEGOVINE ET DE CROATIE",355,"TORNJAK"]
[null,"BERGER DE BRIE",113,"BERGER DE BRIE"]
[null,"BERGER DE LA MAREMME ET DES ABRUZZES",201,"CANE DA PASTORE MAREMMANO-ABRUZZESE"]
[null,"BERGER DE LA SERRA DE AIRES",93,"CÃO DA SERRA DE AIRES"]
[null,"BERGER DE L'EUROPE DU SUD-EST",357,"CIOBANESC ROMANESC DE BUCOVINA"]
[null,"BERGER DE PICARDIE",176,""]
[null,"BERGER DE RUSSIE MERIDIONALE",326,"IOUJNOROUSSKAÏA OVTCHARKA"]
[null,"BERGER DES PYRENEES A FACE RASE",138,"BERGER DES PYRENEES A FACE RASE"]
[null,"BERGER DES PYRENEES A POIL LONG",141,"BERGER DES PYRENEES A POIL LONG"]
[null,"BERGER DU CAUCASE",328,"KAVKAZSKAÏA OVTCHARKA"]
[null,"BERGER DU KARST",278,"KRASZKI OVCAR"]
[null,"BERGER FINNOIS DE LAPONIE",284,"LAPINPOROKOIRA"]
[null,"BERGER HOLLANDAIS",223,"HOLLANDSE HERDERSHOND"]
[null,"BERGER POLONAIS DE PLAINE",251,"POLSKI OWCZAREK NIZINNY"]
[null,"BICHON A POIL FRISE",215,""]
[null,"BICHON BOLONAIS",196,"BOLOGNESE"]
[null,"BICHON HAVANAIS",250,"BICHON HAVANAIS"]
[null,"BICHON MALTAIS",65,"MALTESE"]
[null,"BILLY",25,"BILLY"]
[null,"BORDER COLLIE",297,"BORDER COLLIE"]
[null,"BORDER TERRIER",10,"BORDER TERRIER"]
[null,"BOULEDOGUE FRANCAIS",101,"BOULEDOGUE FRANCAIS"]
[null,"BOUVIER AUSTRALIEN",287,"AUSTRALIAN CATTLE DOG"]
[null,"BOUVIER AUSTRALIEN COURTE QUEUE",351,"AUSTRALIAN STUMPY TAIL CATTLE DOG"]
[null,"BOUVIER BERNOIS",45,"BERNER SENNENHUND , DÜRRBÄCHLER"]
[null,"BOUVIER DE L'APPENZELL",46,"APPENZELLER SENNENHUND"]
[null,"BOUVIER DE L'ENTLEBUCH",47,"ENTLEBUCHER SENNENHUND"]
[null,"BOUVIER DES ARDENNES",171,"BOUVIER DES ARDENNES"]
[null,"BOUVIER DES FLANDRES",191,"BOUVIER DES FLANDRES"]
[null,"BOXER",144,"BOXER"]
[null,"BRACHET ALLEMAND",299,"DEUTSCHE BRACKE"]
[null,"BRACHET DE STYRIE A POIL DUR",62,"STEIRISCHE RAUHHAARBRACKE"]
[null,"BRACHET NOIR ET FEU",63,"BRANDLBRACKE"]
[null,"BRACHET POLONAIS",52,"OGAR POLSKI"]
[null,"BRACHET TYROLIEN",68,"TIROLER BRACKE"]
[null,"BRAQUE ALLEMAND A POIL COURT",119,"DEUTSCH KURZHAAR"]
[null,"BRAQUE D AUVERGNE",180,"BRAQUE D'AUVERGNE"]
[null,"BRAQUE DE BURGOS",90,"PERDIGUERO DE BURGOS"]
[null,"BRAQUE DE L ARIEGE",177,"BRAQUE DE L'ARIEGE"]
[null,"BRAQUE DE WEIMAR",99,"WEIMARANER"]
[null,"BRAQUE DU BOURBONNAIS",179,"BRAQUE DU BOURBONNAIS"]
[null,"BRAQUE FRANCAIS, TYPE GASCOGNE",133,""]
[null,"BRAQUE FRANCAIS, TYPE PYRENEES",134,""]
[null,"BRAQUE HONGROIS A POIL COURT",57,"RÖVIDSZÖRU MAGYAR VIZSLA"]
[null,"BRAQUE HONGROIS A POIL DUR",239,"DRÖTZÖRÜ MAGYAR VIZSLA"]
[null,"BRAQUE ITALIEN",202,"BRACCO ITALIANO"]
[null,"BRAQUE SAINT GERMAIN",115,"BRAQUE SAINT GERMAIN"]
[null,"BRAQUE SLOVAQUE A POIL DUR",320,"SLOVENSKI HRUBOSRSTY STAVAC (OHAR)"]
[null,"BRIQUET DE PROVENCE",911,""]
[null,"BRIQUET GRIFFON VENDEEN",19,"BRIQUET GRIFFON VENDEEN"]
[null,"BROHOLMER",315,"BROHOLMER"]
[null,"BRUNO SAINT-HUBERT FRANCAIS",905,"JURA LAUFHUND - CHIEN COURANT"]
[null,"BUHUND NORVEGIEN",237,"NORSK BUHUND"]
[null,"BULL TERRIER",11,"BULL TERRIER"]
[null,"BULL TERRIER MINIATURE",359,"MINIATURE BULL TERRIER"]
[null,"BULLDOG",149,"BULLDOG"]
[null,"BULLMASTIFF",157,"BULLMASTIFF"]
[null,"CAIRN TERRIER",4,"CAIRN TERRIER"]
[null,"CANICHE",172,"CANICHE"]
[null,"CARLIN",253,"PUG"]
[null,"CAVALIER KING CHARLES",136,"CAVALIER KING CHARLES SPANIEL"]
[null,"CHIEN A LOUTRE",294,"OTTERHOUND"]
[null,"CHIEN CHINOIS A CRETE",288,"CHINESE CRESTED DOG"]
[null,"CHIEN COURANT DE BOSNIE A POIL DUR",155,"BOSANSKI OSTRODLAKI GONIC - BARAK"]
[null,"CHIEN COURANT DE HALDEN",267,"HALDENSTOVER"]
[null,"CHIEN COURANT DE HAMILTON",132,"HAMILTONSTOVARE"]
[null,"CHIEN COURANT DE HYGEN",266,"HYGENHUND"]
[null,"CHIEN COURANT DE LA VALLE DE LA SAVE",154,"POSAVSKI GONIC"]
[null,"CHIEN COURANT DE MONTAGNE DU MONTENEGRO",279,"CRNOGORSKI  PLANINSKI GONIC"]
[null,"CHIEN COURANT DE SCHILLER",131,"SCHILLERSTÖVARE"]
[null,"CHIEN COURANT DE TRANSYLVANIE",241,"ERDELYI KOPO"]
[null,"CHIEN COURANT D'ISTRIE A POIL DUR",152,"ISTARSKI OSTRODLAKI GONIC"]
[null,"CHIEN COURANT D'ISTRIE A POIL RAS",151,"ISTARSKI KRATKODLAKI GONIC"]
[null,"CHIEN COURANT DU SMALAND",129,"SMALANDSSTOVARE"]
[null,"CHIEN COURANT ESPAGNOL",204,"SABUESO ESPAÑOL"]
[null,"CHIEN COURANT FINLANDAIS",51,"SUOMENAJOKOIRA"]
[null,"CHIEN COURANT GREC",214,"HELLINIKOS ICHNILATIS"]
[null,"CHIEN COURANT ITALIEN A POIL DUR",198,"SEGUGIO ITALIANO A PELO FORTE"]
[null,"CHIEN COURANT ITALIEN A POIL RAS",337,"SEGUGIO ITALIANO A PELO RAZO"]
[null,"CHIEN COURANT NORVEGIEN",203,"DUNKER"]
[null,"CHIEN COURANT POLONAIS",354,"GONZCY POLSKI"]
[null,"CHIEN COURANT SERBE",150,"SERBSKI GONIC"]
[null,"CHIEN COURANT SLOVAQUE",244,"SLOVENSKY KOPOV"]
[null,"CHIEN COURANT SUISSE",59,"SCHWEIZER LAUFHUND"]
[null,"CHIEN COURANT TRICOLORE SERBE",229,"SERPSKI TROBOJNI GONIC"]
[null,"CHIEN D'ARRET ALLEMAND A POIL DUR",98,"DEUTSCH DRAHTHAAR"]
[null,"CHIEN D'ARRET ALLEMAND A POIL LONG",117," DEUTSCH LANGHAAR"]
[null,"CHIEN D'ARRET ALLEMAND A POIL RAIDE",232,"DEUTSCH STICHELHAAR"]
[null,"CHIEN D'ARRET DANOIS ANCESTRAL",281,"GAMMEL DANSK HONSHUND"]
[null,"CHIEN D'ARRET FRISON",222,"STABYHOUN"]
[null,"CHIEN D'ARRET PORTUGAIS",187,"PERDIGUEIRO PORTUGUES"]
[null,"CHIEN D'ARTOIS",28,"CHIEN D'ARTOIS"]
[null,"CHIEN DE BERGER ANGLAIS ANCESTRAL",16,"OLD ENGLISH SHEEPDOG"]
[null,"CHIEN DE BERGER BELGE",15,"BELGISCHE HERDERSHOND"]
[null,"CHIEN DE BERGER CATALAN",87,"PERRO DE PASTOR CATALAN - GOS D'ATURA CATALA"]
[null,"CHIEN DE BERGER CROATE",277,"HRVATSKI OVCAR"]
[null,"CHIEN DE BERGER D ANATOLIE",331,"COBAN KOPEGI"]
[null,"CHIEN DE BERGER DE MAJORQUE",321,"PERRO DE PASTOR MALLORQUIN - CA DE BESTIAR"]
[null,"CHIEN DE BERGER DES SHETLAND",88,"SHETLAND SHEEPDOG"]
[null,"CHIEN DE BERGER DES TATRAS",252,"POLSKI OWCZAREK PODHALANSKI"]
[null,"CHIEN DE BERGER ISLANDAIS",289,"ISLENSKUR FJARHUNDUR"]
[null,"CHIEN DE BERGER ROUMAIN DE MIORITZA",349,"CIOBANESC ROMÂNESC MIORITIC"]
[null,"CHIEN DE BERGER ROUMAIN DES CARPATHES",350,"CIOBANESC  ROMÂNESC CARPATIN"]
[null,"CHIEN DE BERGER YOUGOSLAVE DE CHARPLANINA",41,"JUGOSLOVENSKI OVCARSKI PAS"]
[null,"CHIEN DE CANAAN",273,"CANAAN DOG"]
[null,"CHIEN DE CASTRO LABOREIRO",170,"CAO DE CASTRO LABOREIRO"]
[null,"CHIEN DE COUR ITALIEN",343,"CANE CORSO"]
[null,"CHIEN DE FERME DANO-SUEDOIS",356,"DANSK-SVENSK GARDSHUND"]
[null,"CHIEN DE GARENNE DES CANARIES",329,"PODENCO CANARIO"]
[null,"CHIEN DE GARENNE PORTUGAIS",94,"PODENGO PORTUGUÈS"]
[null,"CHIEN DE LA SERRA DA ESTRELA",173,"CAO DA SERRA DA ESTRELA"]
[null,"CHIEN DE LEONBERG",145,"LEONBERGER"]
[null,"CHIEN DE MONTAGNE DE L'ATLAS",247,"AÏDI"]
[null,"CHIEN DE MONTAGNE DES PYRENEES",137,"CHIEN DE MONTAGNE DES PYRENEES"]
[null,"CHIEN DE PERDRIX DE DRENTE",224,"DRENTSCHE PATRIJSHOND"]
[null,"CHIEN DE RHODESIE A CRETE DORSALE",146,"RHODESIAN RIDGEBACK"]
[null,"CHIEN DE ROUGE DE BAVIERE",217,"BAYRISCHER GEBIRGSSCHWEISSHUND"]
[null,"CHIEN DE ROUGE DU HANOVRE",213,"HANNOVERSCHER SCHWEISSHUND"]
[null,"CHIEN DE SAINT HUBERT",84,"CHIEN DE SAINT HUBERT"]
[null,"CHIEN DE TAÏWAN",348,"TAÏWAN DOG"]
[null,"CHIEN D'EAU AMERICAIN",301,"AMERICAN WATER SPANIEL"]
[null,"CHIEN D'EAU ESPAGNOL",336,"PERRO DE AGUA ESPAÑOL"]
[null,"CHIEN D'EAU FRISON",221,"WETTERHOUN"]
[null,"CHIEN D'EAU PORTUGAIS",37,"CÃO DE AGUA PORTUGUÊS"]
[null,"CHIEN D'EAU ROMAGNOL",298,"LAGOTTO ROMAGNOLO"]
[null,"CHIEN D'ELAN NORVEGIEN GRIS",242,"NORSK ELKHUND GRA"]
[null,"CHIEN D'ELAN NORVEGIEN NOIR",268,"NORSK ELGHUND SORT"]
[null,"CHIEN D'ELAN SUEDOIS / JÄMTHUND",42,"JÄMTHUND"]
[null,"CHIEN D'OURS DE CARELIE",48,"KARJALANKARHUKOIRA"]
[null,"CHIEN D'OYSEL ALLEMAND",104,"DEUTSCHER WACHTELHUND"]
[null,"CHIEN DU GROENLAND",274,"GRONLANDSHUND"]
[null,"CHIEN DU PHARAON",248,"PHARAOH HOUND"]
[null,"CHIEN FINNOIS DE LAPONIE",189,"SUOMENLAPINKOIRA"]
[null,"CHIEN FONNESE",913,"CANE FONNESE"]
[null,"CHIEN LOUP DE SAARLOOS",311,"SAARLOOS WOLFHOND"]
[null,"CHIEN LOUP TCHECOSLOVAQUE",332,"CESKOSLOVENSKY VECIAK"]
[null,"CHIEN N. ET F. POUR LA CHASSE AU RATON",300,"BLACK AND TAN COONHOUND"]
[null,"CHIEN NORVEGIEN DE MACAREUX",265,"NORSK LUNDEHUND"]
[null,"CHIEN NU DU MEXIQUE",234,"XOLOITZCUINTLE"]
[null,"CHIEN NU DU PEROU",310,"PERRO SIN PELO DEL PERU"]
[null,"CHIEN PARTICOLORE A POIL FRISE",912,"CHIEN PARTICOLORE A POIL FRISE"]
[null,"CHIEN THAILANDAIS A CRETE DORSALE",338,"THAI RIDGEBACK DOG"]
[null,"CHIHUAHUA",218,"CHIHUAHUA"]
[null,"CHOW CHOW",205,"CHOW-CHOW"]
[null,"CIMARRON URUGUAYEN",353,"CIMARRON URUGUAYO"]
[null,"CIRNECO DE L ETNA",199,"CIRNECO DELL'ETNA"]
[null,"CLUMBER SPANIEL",109,"CLUMBER SPANIEL"]
[null,"COCKER SPANIEL AMERICAIN",167,"AMERICAN COCKER SPANIEL"]
[null,"COCKER SPANIEL ANGLAIS",5,"ENGLISH COCKER SPANIEL"]
[null,"COLLIE A POIL COURT",296,"SMOOTH COLLEY"]
[null,"COLLIE A POIL LONG",156,"ROUGH COLLEY"]
[null,"CONTINENTAL BULLDOG",915,"CONTINENTAL BULLDOG"]
[null,"COTON DE TULEAR",283,"COTON DE TULEAR"]
[null,"CROISE",null,"CROISE"]
[null,"CURSINU",901,"U'CURSINU"]
[null,"DALMATIEN",153,"DALMATIEN"]
[null,"DANDIE DINMONT TERRIER",168,"DANDIE DINMONT TERRIER"]
[null,"DOBERMANN",143,"DOBERMANN"]
[null,"DOGUE ALLEMAND",235,"DEUTSCHE DOGGE"]
[null,"DOGUE ARGENTIN",292,"DOGO ARGENTINO"]
[null,"DOGUE DE BORDEAUX",116,"DOGUE DE BORDEAUX"]
[null,"DOGUE DE MAJORQUE",249,"PERRO DOGO MALLORQUIN"]
[null,"DOGUE DES CANARIES",346,"DOGO CANARIO"]
[null,"DOGUE DU TIBET",230,"DO-KHYI"]
[null,"ENGLISH SPRINGER SPANIEL",125,"ENGLISH SPRINGER SPANIEL"]
[null,"EPAGNEUL BLEU DE PICARDIE",106,"EPAGNEUL BLEU DE PICARDIE"]
[null,"EPAGNEUL BRETON",95,"EPAGNEUL BRETON"]
[null,"EPAGNEUL DE PONT AUDEMER",114,"EPAGNEUL DE PONT AUDEMER"]
[null,"EPAGNEUL DE SAINT USUGE",906,"EPAGNEUL DE SAINT USUGE"]
[null,"EPAGNEUL D'EAU IRLANDAIS",124,"IRISH WATER SPANIEL"]
[null,"EPAGNEUL FRANCAIS",175,"EPAGNEUL FRANCAIS"]
[null,"EPAGNEUL JAPONAIS",206,"CHIN"]
[null,"EPAGNEUL KING CHARLES",128,"KING CHARLES SPANIEL"]
[null,"EPAGNEUL NAIN CONTINENTAL",77,""]
[null,"EPAGNEUL PEKINOIS",207,"PEKINGESE"]
[null,"EPAGNEUL PICARD",108,"EPAGNEUL PICARD"]
[null,"EPAGNEUL TIBETAIN",231,"TIBETAN SPANIEL"]
[null,"EURASIER",291,"EURASIEN"]
[null,"FIELD SPANIEL",123,"FIELD SPANIEL"]
[null,"FILA BRASILEIRO",225,"FILA BRASILEIRO"]
[null,"FILA DE SAINT  MIGUEL",340,"CAO DE FILA DE SAO MIGUEL"]
[null,"FOX HOUND ANGLAIS",159,"ENGLISH FOXHOUND"]
[null,"FOX TERRIER POIL DUR",169,"FOX TERRIER WIRE"]
[null,"FOX TERRIER POIL LISSE",12,"FOX TERRIER SMOOTH"]
[null,"FOXHOUND AMERICAIN",303,"AMERICAN FOXHOUND"]
[null,"FRANCAIS BLANC ET NOIR",220,"FRANCAIS"]
[null,"FRANCAIS BLANC ET ORANGE",316,""]
[null,"FRANCAIS TRICOLORE",219,"FRANCAIS"]
[null,"GASCON SAINTONGEOIS",21,"GASCON SAINTONGEOIS"]
[null,"GOLDEN RETRIEVER",111,"GOLDEN RETRIEVER"]
[null,"GRAND ANGLO FRANCAIS BLANC ET NOIR",323,"GRAND ANGLO FRANCAIS"]
[null,"GRAND ANGLO-FRANCAIS BLANC ET ORANGE",324,"GRAND ANGLO-FRANCAIS"]
[null,"GRAND ANGLO-FRANCAIS TRICOLORE",322,"GRAND ANGLO FRANCAIS"]
[null,"GRAND BASSET GRIFFON VENDEEN",33,"GRAND BASSET GRIFFON VENDEEN"]
[null,"GRAND BLEU DE GASCOGNE",22,"GRAND BLEU DE GASCOGNE"]
[null,"GRAND BOUVIER SUISSE",58,"GROSSER SCHWEIZER SENNENHUND"]
[null,"GRAND EPAGNEUL DE MUNSTER",118,"GROSSER MÜNSTERLÄNDER VORSTEHHUND"]
[null,"GRAND GRIFFON VENDEEN",282,"GRAND GRIFFON VENDEEN"]
[null,"GREYHOUND",158,"GREYHOUND"]
[null,"GRIFFON A POIL DUR KORTHALS",107,"GRIFFON A POIL DUR KORTHALS"]
[null,"GRIFFON BELGE",81,"GRIFFON BELGE"]
[null,"GRIFFON BLEU DE GASCOGNE",32,"GRIFFON BLEU DE GASCOGNE"]
[null,"GRIFFON BRUXELLOIS",80,"GRIFFON BRUXELLOIS"]
[null,"GRIFFON FAUVE DE BRETAGNE",66,"GRIFFON FAUVE DE BRETAGNE"]
[null,"GRIFFON NIVERNAIS",17,"GRIFFON NIVERNAIS"]
[null,"HARRIER",295,"HARRIER"]
[null,"HOKKAIDO",261,"HOKKAIDO"]
[null,"HOVAWART",190,"HOVAWART"]
[null,"HUSKY DE SIBERIE",270,"SIBERIAN HUSKY"]
[null,"JINDO COREEN",334,"KOREA JINDO DOG"]
[null,"KAI",317,"KAI"]
[null,"KELPIE AUSTRALIEN",293,"AUSTRALIAN KELPIE"]
[null,"KISHU",318,"KISHU"]
[null,"KOMONDOR",53,"KOMONDOR"]
[null,"KROMFOHRLANDER",192,"KROMFOHRLÄNDER"]
[null,"KUVASZ",54,"KUVASZ"]
[null,"LAIKA DE SIBERIE OCCIDENTALE",306,"ZAPADNO SIBIRSKAÏA LAÏKA"]
[null,"LAIKA DE SIBERIE ORIENTALE",305,"VOSTOTCHNO SIBIRSKAÏA LAÏKA"]
[null,"LAIKA RUSSO EUROPEEN",304,"RUSSKO EVROPEÏSKAÏA LAÏKA"]
[null,"LAKELAND TERRIER",70,"LAKELAND TERRIER"]
[null,"LANDSEER",226,"LANDSEER - TYPE CONTINENTAL EUROPEEN"]
[null,"LAPPHUND SUEDOIS",135,"SVENSK LAPPHUND"]
[null,"LEVRIER AFGHAN",228,"AFGHAN HOUND"]
[null,"LEVRIER ECOSSAIS",164,"DEERHOUND - SCOTTISH DEERHOUND"]
[null,"LEVRIER ESPAGNOL",285,"GALGO ESPAÑOL"]
[null,"LEVRIER HONGROIS",240,"MAGYAR AGAR"]
[null,"LEVRIER IRLANDAIS",160,"IRISH WOLFHOUND"]
[null,"LEVRIER POLONAIS",333,"CHART POLSKI"]
[null,"LHASSA APSO",227,"LHASSA APSO"]
[null,"MALAMUTE DE L'ALASKA",243,"ALASKAN MALAMUTE"]
[null,"MANCHESTER TERRIER",71,"MANCHESTER TERRIER"]
[null,"MASTIFF",264,"MASTIFF"]
[null,"MATIN DE L'ALENTEJO",96,"RAFEIRO DO ALENTEJO"]
[null,"MATIN DES PYRENEES",92,"MASTIN DEL PIRINEO"]
[null,"MATIN ESPAGNOL",91,"MASTIN ESPANOL"]
[null,"MATIN NAPOLITAIN",197,"MASTINO NAPOLETANO"]
[null,"MUDI",238,"MUDI"]
[null,"NORFOLK TERRIER",272,"NORFOLK TERRIER"]
[null,"NORWICH TERRIER",72,"NORWICH TERRIER"]
[null,"PETIT BASSET GRIFFON VENDEEN",67,"PETIT BASSET GRIFFON VENDEEN"]
[null,"PETIT BLEU DE GASCOGNE",31,"PETIT BLEU DE GASCOGNE"]
[null,"PETIT BRABANCON",82,"PETIT BRABANCON"]
[null,"PETIT CHIEN COURANT SUISSE",60,"SCHWEIZERISCHER NIEDERLAUFHUND"]
[null,"PETIT CHIEN HOLLANDAIS DE CHASSE AU GIBIER D'EAU",314,"KOOIKERHONDJE"]
[null,"PETIT CHIEN LION",233,"PETIT CHIEN LION"]
[null,"PETIT CHIEN RUSSE",352,"RUSSKIY TOY"]
[null,"PETIT EPAGNEUL DE MUNSTER",102,"KLEINER MÜNSTERLÄNDER VORSTEHHUND"]
[null,"PETIT LEVRIER ITALIEN",200,"PICCOLO LEVRIERO ITALIANO"]
[null,"PINSCHER ALLEMAND",184,"DEUTSCHER PINSCHER"]
[null,"PINSCHER AUTRICHIEN",64,"ÖSTERREICHISCHER PINSCHER"]
[null,"PINSCHER NAIN",185,"ZWERGPINSCHER"]
[null,"PODENCO D'IBIZA",89,"PODENCO IBICENCO"]
[null,"POINTER ANGLAIS",1,"ENGLISH POINTER"]
[null,"POITEVIN",24,"POITEVIN"]
[null,"PORCELAINE",30,"PORCELAINE"]
[null,"PUDELPOINTER",216,"PUDELPOINTER"]
[null,"PULI",55,"PULI"]
[null,"PUMI",56,"PUMI"]
[null,"RATIER DE PRAGUE",917,"PRAZSKY KRYSARIK"]
[null,"RETRIEVER A POIL BOUCLE",110,"CURLY COATED RETRIEVER"]
[null,"RETRIEVER A POIL PLAT",121,"FLAT COATED RETRIEVER"]
[null,"RETRIEVER DE LA BAIE DE CHESAPEAKE",263,"CHESAPEAKE BAY RETRIEVER"]
[null,"RETRIEVER DE LA NOUVELLE ECOSSE",312,"NOVA SCOTIA DUCK TOLLING RETRIEVER"]
[null,"RETRIEVER DU LABRADOR",122,"LABRADOR RETRIEVER"]
[null,"ROTTWEILER",147,"ROTTWEILER"]
[null,"SAINT BERNARD",61,"ST. BERNHARDSHUND"]
[null,"SALUKI",269,"SALUKI"]
[null,"SAMOYEDE",212,"SAMOIEDSKAÏA SABAKA"]
[null,"SCHAPENDOES NEERLANDAIS",313,"NEDERLANDSE SCHAPENDOES"]
[null,"SCHIPPERKE",83,"SCHIPPERKE"]
[null,"SCHNAUZER",182,"SCHNAUZER"]
[null,"SCHNAUZER GEANT",181,"RIESENSCHNAUZER"]
[null,"SCHNAUZER NAIN",183,"ZWERGSCHNAUZER"]
[null,"SEALYHAM TERRIER",74,"SEALYHAM TERRIER"]
[null,"SETTER ANGLAIS",2,"ENGLISH SETTER"]
[null,"SETTER GORDON",6,"GORDON SETTER"]
[null,"SETTER IRLANDAIS ROUGE",120,"IRISH RED SETTER"]
[null,"SETTER IRLANDAIS ROUGE & BLANC",330,"IRISH RED AND WHITE SETTER"]
[null,"SHAR PEI",309,"SHAR PEI"]
[null,"SHIBA",257,"SHIBA"]
[null,"SHIH TZU",208,"SHIH TZU"]
[null,"SHIKOKU",319,"SHIKOKU"]
[null,"SKYE TERRIER",75,"SKYE TERRIER"]
[null,"SLOUGHI",188,"SLOUGHI"]
[null,"SMOUS DES PAYS BAS",308,"HOLLANDSE SMOUSHOND"]
[null,"SPINONE",165,"SPINONE ITALIANO"]
[null,"SPITZ",97,""]
[null,"SPITZ DE NORRBOTTEN",276,"NORRBOTTENSPETS"]
[null,"SPITZ DES VISIGOTHS",14,"VÄSTGÖTASPETS"]
[null,"SPITZ FINLANDAIS",49,"SUOMENPYSTYKORVA - FINNISH SPITZ"]
[null,"SPITZ JAPONAIS",262,"NIHON SUPITTSU"]
[null,"STAFFORDSHIRE BULL TERRIER",76,"STAFFORDSHIRE BULL TERRIER"]
[null,"STAFFORDSHIRE TERRIER AMERICAIN",286,"AMERICAN STAFFORDSHIRE TERRIER"]
[null,"SUSSEX SPANIEL",127,"SUSSEX SPANIEL"]
[null,"TCHOUVATCH SLOVAQUE",142,"SLOVENSKY CUVAC"]
[null,"TECKEL",148,"DACHSHUND - TECKEL"]
[null,"TERRE NEUVE",50,"NEWFOUNDLAND"]
[null,"TERRIER AUSTRALIEN",8,"AUSTRALIAN TERRIER"]
[null,"TERRIER AUSTRALIEN A POIL SOYEUX",236,"AUSTRALIAN SILKY TERRIER"]
[null,"TERRIER BRESILIEN",341,"TERRIER BRASILEIRO"]
[null,"TERRIER D'AGREMENT ANGLAIS NOIR ET FEU",13,"ENGLISH TOY TERRIER BLACK AND TAN"]
[null,"TERRIER DE BOSTON",140,"BOSTON TERRIER"]
[null,"TERRIER DE CHASSE ALLEMAND",103,"DEUTSCHER JAGDTERRIER"]
[null,"TERRIER DU REVEREND RUSSELL",339,"PARSON RUSSELL TERRIER"]
[null,"TERRIER ECOSSAIS",73,"SCOTTISH TERRIER"]
[null,"TERRIER IRLANDAIS",139,"IRISH TERRIER"]
[null,"TERRIER IRLANDAIS A POIL DOUX",40,"IRISH SOFT COATED WHEATEN TERRIER"]
[null,"TERRIER IRLANDAIS GLEN OF IMAAL",302,"IRISH GLEN OF IMAAL TERRIER"]
[null,"TERRIER JACK RUSSELL",345,"JACK RUSSELL TERRIER"]
[null,"TERRIER JAPONAIS",259,"NIHON TERIA"]
[null,"TERRIER KERRY BLUE",3,"KERRY BLUE TERRIER"]
[null,"TERRIER NOIR RUSSE",327,"TCHIORNY TERRIER"]
[null,"TERRIER TCHEQUE",246,"CESKY TERRIER"]
[null,"TERRIER TIBETAIN",209,"TIBETAN TERRIER"]
[null,"TOSA",260,"TOSA"]
[null,"VOLPINO ITALIEN",195,"VOLPINO ITALIANO"]
[null,"WELSH CORGI CARDIGAN",38,"WELSH CORGI CARDIGAN"]
[null,"WELSH CORGI PEMBROKE",39,"WELSH CORGI PEMBROKE"]
[null,"WELSH SPRINGER SPANIEL",126,"WELSH SPRINGER SPANIEL"]
[null,"WELSH TERRIER",78,"WELSH TERRIER"]
[null,"WEST HIGHLAND WHITE TERRIER",85,"WEST HIGHLAND WHITE TERRIER"]
[null,"WHIPPET",162,"WHIPPET"]
[null,"YORKSHIRE TERRIER",86,"YORKSHIRE TERRIER"]

{"sheet":"1","index":4,"n_rows":30,"n_cols":8,"rows_kept":30,"cut":false,"hidden":false,"merged":[[16,1,16,5],[17,1,17,5],[15,1,15,3],[0,1,0,7],[1,1,1,7],[6,1,6,7],[12,0,13,5],[14,1,14,5]]}
[null,"COMMISSION D'UTILISATION TROUPEAUX"]
[null,"Président : Monsieur Jean Paul Kerihuel - 7, Allée Mme de La Fayette - 29 200 - ST RENAN"]
[]
[]
[]
[]
[]
["Event / Evénement:",{"$f":"Organisateur!B4","v":"IHWT CS"}]
["Place / Lieu:",{"$f":"Organisateur!B5","v":0}]
["Date:",{"$f":"Organisateur!B6","v":0}]
["Organizer / Organisateur:",{"$f":"Organisateur!B7","v":0}]
[]
["SCORE CARD",null,null,null,null,null,"Catalog No:"]
[null,null,null,null,null,null,"Start No:",{"$f":"RAPPORT!$L$11","v":0}]
["Dog name / Nom du chien:",{"$f":"RAPPORT!$C$11","v":0},null,null,null,null,"Born / Né le:",{"$f":"RAPPORT!$G$11","v":"00:00:00"}]
["Pedigree Reg. No:",{"$f":"RAPPORT!$I$11","v":0},null,null,"Chip / Puce:",{"$f":"RAPPORT!$J$11","v":0},"Sex:",{"$f":"RAPPORT!$F$11","v":0}]
["Owner / Propriétaire:",{"$f":"RAPPORT!$B$11","v":0},null,null,null,null,"Breed / Race:",{"$f":"RAPPORT!$E$11","v":0}]
["Handler / Conducteur:",{"$f":"RAPPORT!$A$11","v":0},null,null,null,null,"No:"]
["Exercices","Max","Minus","Score","Comments","Max. time ","Time"]
["Pen / Sortie du parc",10,null,{"$f":"IF(COUNT(C20)=0,\"\",B20-C20)","v":""}]
["Drive 150m / conduite ",15,null,""]
["Drive away 25m / poussée",15,null,""]
["Outrun 75m /recherche",15,null,""]
["Lift/ prise de possession",10,null,""]
["Fetch/ Amenée",15,null,""]
["into pen / Rentrée au parc",10,null,""]
["Behaviour / Comportement",10,null,""]
["Points total",{"$f":"SUM(B20:B27)","v":100},{"$f":"IF(COUNT(C20:C27)=0,\"-\",C20+C21+C22+C23+C24+C25+C26+C27)","v":"-"},{"$f":"IF(COUNT(D20:D27)=0,\"-\",B28-C28)","v":"-"},"Evaluation:",{"$f":"IF(D28=\"-\",\"-\",IF(D28>89.9999,\"EXCELLENT\",IF(D28>79.9999,\"TRES BON\",IF(D28>69.999,\"BON\",IF(D28>59.999,\"satisfaisant\",\" - \")))))","v":"-"}]
["Judge No",null,null,null,"Clarification by:"]
["Name+signature:",{"$f":"Organisateur!B9","v":0}]

{"sheet":"2","index":5,"n_rows":30,"n_cols":8,"rows_kept":30,"cut":false,"hidden":false,"merged":[[16,1,16,5],[17,1,17,5],[15,1,15,3],[0,1,0,7],[1,1,1,7],[6,1,6,7],[12,0,13,5],[14,1,14,5]]}
[null,"COMMISSION D'UTILISATION TROUPEAUX"]
[null,"Président : Monsieur Jean Paul Kerihuel - 7, Allée Mme de La Fayette - 29 200 - ST RENAN"]
[]
[]
[]
[]
[]
["Event / Evénement:",{"$f":"Organisateur!B4","v":"IHWT CS"}]
["Place / Lieu:",{"$f":"Organisateur!B5","v":0}]
["Date:",{"$f":"Organisateur!B6","v":0}]
["Organizer / Organisateur:",{"$f":"Organisateur!B7","v":0}]
[]
["SCORE CARD",null,null,null,null,null,"Catalog No:"]
[null,null,null,null,null,null,"Start No:",{"$f":"RAPPORT!$L$12","v":0}]
["Dog name / Nom du chien:",{"$f":"RAPPORT!$C$12","v":0},null,null,null,null,"Born / Né le:",{"$f":"RAPPORT!$G$12","v":"00:00:00"}]
["Pedigree Reg. No:",{"$f":"RAPPORT!$I$12","v":0},null,null,"Chip / Puce:",{"$f":"RAPPORT!$J$12","v":0},"Sex:",{"$f":"RAPPORT!$F$12","v":0}]
["Owner / Propriétaire:",{"$f":"RAPPORT!$B$12","v":0},null,null,null,null,"Breed / Race:",{"$f":"RAPPORT!$E$12","v":0}]
["Handler / Conducteur:",{"$f":"RAPPORT!$A$12","v":0},null,null,null,null,"No:"]
["Exercices","Max","Minus","Score","Comments","Max. time ","Time"]
["Pen / Sortie du parc",10,null,{"$f":"IF(COUNT(C20)=0,\"\",B20-C20)","v":""}]
["Drive 150m / conduite ",15,null,""]
["Drive away 25m / poussée",15,null,""]
["Outrun 75m /recherche",15,null,""]
["Lift/ prise de possession",10,null,""]
["Fetch/ Amenée",15,null,""]
["into pen / Rentrée au parc",10,null,""]
["Behaviour / Comportement",10,null,""]
["Points total",{"$f":"SUM(B20:B27)","v":100},{"$f":"IF(COUNT(C20:C27)=0,\"-\",C20+C21+C22+C23+C24+C25+C26+C27)","v":"-"},{"$f":"IF(COUNT(D20:D27)=0,\"-\",B28-C28)","v":"-"},"Evaluation:",{"$f":"IF(D28=\"-\",\"-\",IF(D28>89.9999,\"EXCELLENT\",IF(D28>79.9999,\"TRES BON\",IF(D28>69.999,\"BON\",IF(D28>59.999,\"satisfaisant\",\" - \")))))","v":"-"}]
["Judge No",null,null,null,"Clarification by:"]
["Name+signature:",{"$f":"Organisateur!B9","v":0}]

{"sheet":"3","index":6,"n_rows":30,"n_cols":8,"rows_kept":30,"cut":false,"hidden":false,"merged":[[16,1,16,5],[17,1,17,5],[15,1,15,3],[0,1,0,7],[1,1,1,7],[6,1,6,7],[12,0,13,5],[14,1,14,5]]}
[null,"COMMISSION D'UTILISATION TROUPEAUX"]
[null,"Président : Monsieur Jean Paul Kerihuel - 7, Allée Mme de La Fayette - 29 200 - ST RENAN"]
[]
[]
[]
[]
[]
["Event / Evénement:",{"$f":"Organisateur!B4","v":"IHWT CS"}]
["Place / Lieu:",{"$f":"Organisateur!B5","v":0}]
["Date:",{"$f":"Organisateur!B6","v":0}]
["Organizer / Organisateur:",{"$f":"Organisateur!B7","v":0}]
[]
["SCORE CARD",null,null,null,null,null,"Catalog No:",3]
[null,null,null,null,null,null,"Start No:",{"$f":"RAPPORT!$L$13","v":0}]
["Dog name / Nom du chien:",{"$f":"RAPPORT!$C$13","v":0},null,null,null,null,"Born / Né le:",{"$f":"RAPPORT!$G$13","v":"00:00:00"}]
["Pedigree Reg. No:",{"$f":"RAPPORT!$I$13","v":0},null,null,"Chip / Puce:",{"$f":"RAPPORT!$J$13","v":0},"Sex:",{"$f":"RAPPORT!$F$13","v":0}]
["Owner / Propriétaire:",{"$f":"RAPPORT!$B$13","v":0},null,null,null,null,"Breed / Race:",{"$f":"RAPPORT!$E$13","v":0}]
["Handler / Conducteur:",{"$f":"RAPPORT!$A$13","v":0},null,null,null,null,"No:"]
["Exercices","Max","Minus","Score","Comments","Max. time ","Time"]
["Pen / Sortie du parc",10,null,{"$f":"IF(COUNT(C20)=0,\"\",B20-C20)","v":""}]
["Drive 150m / conduite ",15,null,""]
["Drive away 25m / poussée",15,null,""]
["Outrun 75m /recherche",15,null,""]
["Lift/ prise de possession",10,null,""]
["Fetch/ Amenée",15,null,""]
["into pen / Rentrée au parc",10,null,""]
["Behaviour / Comportement",10,null,""]
["Points total",{"$f":"SUM(B20:B27)","v":100},{"$f":"IF(COUNT(C20:C27)=0,\"-\",C20+C21+C22+C23+C24+C25+C26+C27)","v":"-"},{"$f":"IF(COUNT(D20:D27)=0,\"-\",B28-C28)","v":"-"},"Evaluation:",{"$f":"IF(D28=\"-\",\"-\",IF(D28>89.9999,\"EXCELLENT\",IF(D28>79.9999,\"TRES BON\",IF(D28>69.999,\"BON\",IF(D28>59.999,\"satisfaisant\",\" - \")))))","v":"-"}]
["Judge No",null,null,null,"Clarification by:"]
["Name+signature:",{"$f":"Organisateur!B9","v":0}]

{"sheet":"4","index":7,"n_rows":30,"n_cols":8,"rows_kept":30,"cut":false,"hidden":false,"merged":[[16,1,16,5],[17,1,17,5],[15,1,15,3],[0,1,0,7],[1,1,1,7],[6,1,6,7],[12,0,13,5],[14,1,14,5]]}
[null,"COMMISSION D'UTILISATION TROUPEAUX"]
[null,"Président : Monsieur Jean Paul Kerihuel - 7, Allée Mme de La Fayette - 29 200 - ST RENAN"]
[]
[]
[]
[]
[]
["Event / Evénement:",{"$f":"Organisateur!B4","v":"IHWT CS"}]
["Place / Lieu:",{"$f":"Organisateur!B5","v":0}]
["Date:",{"$f":"Organisateur!B6","v":0}]
["Organizer / Organisateur:",{"$f":"Organisateur!B7","v":0}]
[]
["SCORE CARD",null,null,null,null,null,"Catalog No:"]
[null,null,null,null,null,null,"Start No:",{"$f":"RAPPORT!$L$14","v":0}]
["Dog name / Nom du chien:",{"$f":"RAPPORT!$C$14","v":0},null,null,null,null,"Born / Né le:",{"$f":"RAPPORT!$G$14","v":"00:00:00"}]
["Pedigree Reg. No:",{"$f":"RAPPORT!$I$14","v":0},null,null,"Chip / Puce:",{"$f":"RAPPORT!$J$14","v":0},"Sex:",{"$f":"RAPPORT!$F$14","v":0}]
["Owner / Propriétaire:",{"$f":"RAPPORT!$B$14","v":0},null,null,null,null,"Breed / Race:",{"$f":"RAPPORT!$E$14","v":0}]
["Handler / Conducteur:",{"$f":"RAPPORT!$A$14","v":0},null,null,null,null,"No:"]
["Exercices","Max","Minus","Score","Comments","Max. time ","Time"]
["Pen / Sortie du parc",10,null,{"$f":"IF(COUNT(C20)=0,\"\",B20-C20)","v":""}]
["Drive 150m / conduite ",15,null,""]
["Drive away 25m / poussée",15,null,""]
["Outrun 75m /recherche",15,null,""]
["Lift/ prise de possession",10,null,""]
["Fetch/ Amenée",15,null,""]
["into pen / Rentrée au parc",10,null,""]
["Behaviour / Comportement",10,null,""]
["Points total",{"$f":"SUM(B20:B27)","v":100},{"$f":"IF(COUNT(C20:C27)=0,\"-\",C20+C21+C22+C23+C24+C25+C26+C27)","v":"-"},{"$f":"IF(COUNT(D20:D27)=0,\"-\",B28-C28)","v":"-"},"Evaluation:",{"$f":"IF(D28=\"-\",\"-\",IF(D28>89.9999,\"EXCELLENT\",IF(D28>79.9999,\"TRES BON\",IF(D28>69.999,\"BON\",IF(D28>59.999,\"satisfaisant\",\" - \")))))","v":"-"}]
["Judge No",null,null,null,"Clarification by:"]
["Name+signature:",{"$f":"Organisateur!B9","v":0}]

{"sheet":"5","index":8,"n_rows":30,"n_cols":8,"rows_kept":30,"cut":false,"hidden":false,"merged":[[16,1,16,5],[17,1,17,5],[15,1,15,3],[0,1,0,7],[1,1,1,7],[6,1,6,7],[12,0,13,5],[14,1,14,5]]}
[null,"COMMISSION D'UTILISATION TROUPEAUX"]
[null,"Président : Monsieur Jean Paul Kerihuel - 7, Allée Mme de La Fayette - 29 200 - ST RENAN"]
[]
[]
[]
[]
[]
["Event / Evénement:",{"$f":"Organisateur!B4","v":"IHWT CS"}]
["Place / Lieu:",{"$f":"Organisateur!B5","v":0}]
["Date:",{"$f":"Organisateur!B6","v":0}]
["Organizer / Organisateur:",{"$f":"Organisateur!B7","v":0}]
[]
["SCORE CARD",null,null,null,null,null,"Catalog No:"]
[null,null,null,null,null,null,"Start No:",{"$f":"RAPPORT!$L$15","v":0}]
["Dog name / Nom du chien:",{"$f":"RAPPORT!$C$15","v":0},null,null,null,null,"Born / Né le:",{"$f":"RAPPORT!$G$15","v":"00:00:00"}]
["Pedigree Reg. No:",{"$f":"RAPPORT!$I$15","v":0},null,null,"Chip / Puce:",{"$f":"RAPPORT!$J$15","v":0},"Sex:",{"$f":"RAPPORT!$F$15","v":0}]
["Owner / Propriétaire:",{"$f":"RAPPORT!$B$15","v":0},null,null,null,null,"Breed / Race:",{"$f":"RAPPORT!$E$15","v":0}]
["Handler / Conducteur:",{"$f":"RAPPORT!$A$15","v":0},null,null,null,null,"No:"]
["Exercices","Max","Minus","Score","Comments","Max. time ","Time"]
["Pen / Sortie du parc",10,null,{"$f":"IF(COUNT(C20)=0,\"\",B20-C20)","v":""}]
["Drive 150m / conduite ",15,null,""]
["Drive away 25m / poussée",15,null,""]
["Outrun 75m /recherche",15,null,""]
["Lift/ prise de possession",10,null,""]
["Fetch/ Amenée",15,null,""," "]
["into pen / Rentrée au parc",10,null,""]
["Behaviour / Comportement",10,null,""]
["Points total",{"$f":"SUM(B20:B27)","v":100},{"$f":"IF(COUNT(C20:C27)=0,\"-\",C20+C21+C22+C23+C24+C25+C26+C27)","v":"-"},{"$f":"IF(COUNT(D20:D27)=0,\"-\",B28-C28)","v":"-"},"Evaluation:",{"$f":"IF(D28=\"-\",\"-\",IF(D28>89.9999,\"EXCELLENT\",IF(D28>79.9999,\"TRES BON\",IF(D28>69.999,\"BON\",IF(D28>59.999,\"satisfaisant\",\" - \")))))","v":"-"},"Rank / Rang:"]
["Judge No",null,null,null,"Clarification by:"]
["Name+signature:",{"$f":"Organisateur!B9","v":0}]

{"sheet":"6","index":9,"n_rows":30,"n_cols":8,"rows_kept":30,"cut":false,"hidden":false,"merged":[[16,1,16,5],[17,1,17,5],[15,1,15,3],[0,1,0,7],[1,1,1,7],[6,1,6,7],[12,0,13,5],[14,1,14,5]]}
[null,"COMMISSION D'UTILISATION TROUPEAUX"]
[null,"Président : Monsieur Jean Paul Kerihuel - 7, Allée Mme de La Fayette - 29 200 - ST RENAN"]
[]
[]
[]
[]
[]
["Event / Evénement:",{"$f":"Organisateur!B4","v":"IHWT CS"}]
["Place / Lieu:",{"$f":"Organisateur!B5","v":0}]
["Date:",{"$f":"Organisateur!B6","v":0}]
["Organizer / Organisateur:",{"$f":"Organisateur!B7","v":0}]
[]
["SCORE CARD HWT TS",null,null,null,null,null,"Catalog No:"]
[null,null,null,null,null,null,"Start No:",{"$f":"RAPPORT!$L$16","v":0}]
["Dog name / Nom du chien:",{"$f":"RAPPORT!$C$16","v":0},null,null,null,null,"Born / Né le:",{"$f":"RAPPORT!$G$16","v":"00:00:00"}]
["Pedigree Reg. No:",{"$f":"RAPPORT!$I$16","v":0},null,null,"Chip / Puce:",{"$f":"RAPPORT!$J$16","v":0},"Sex:",{"$f":"RAPPORT!$F$16","v":0}]
["Owner / Propriétaire:",{"$f":"RAPPORT!$B$16","v":0},null,null,null,null,"Breed / Race:",{"$f":"RAPPORT!$E$16","v":0}]
["Handler / Conducteur:",{"$f":"RAPPORT!$A$16","v":0},null,null,null,null,"No:"]
["Exercices","Max","Minus","Score","Comments","Max. time ","Time"]
["Pen / Sortie du parc",10,null,{"$f":"IF(COUNT(C20)=0,\"\",B20-C20)","v":""}]
["Drive 150m / conduite ",15,null,""]
["Drive away 25m / poussée",15,null,""]
["Outrun 75m /recherche",15,null,""]
["Lift/ prise de possession",10,null,""]
["Fetch/ Amenée",15,null,""]
["into pen / Rentrée au parc",10,null,""]
["Behaviour / Comportement",10,null,""]
["Points total",{"$f":"SUM(B20:B27)","v":100},{"$f":"IF(COUNT(C20:C27)=0,\"-\",C20+C21+C22+C23+C24+C25+C26+C27)","v":"-"},{"$f":"IF(COUNT(D20:D27)=0,\"-\",B28-C28)","v":"-"},"Evaluation:",{"$f":"IF(D28=\"-\",\"-\",IF(D28>89.9999,\"EXCELLENT\",IF(D28>79.9999,\"TRES BON\",IF(D28>69.999,\"BON\",IF(D28>59.999,\"satisfaisant\",\" - \")))))","v":"-"}]
["Judge No",null,null,null,"Clarification by:"]
["Name+signature:",{"$f":"Organisateur!B9","v":0}]

{"sheet":"7","index":10,"n_rows":30,"n_cols":8,"rows_kept":30,"cut":false,"hidden":false,"merged":[[16,1,16,5],[17,1,17,5],[15,1,15,3],[0,1,0,7],[1,1,1,7],[6,1,6,7],[12,0,13,5],[14,1,14,5]]}
[null,"COMMISSION D'UTILISATION TROUPEAUX"]
[null,"Président : Monsieur Jean Paul Kerihuel - 7, Allée Mme de La Fayette - 29 200 - ST RENAN"]
[]
[]
[]
[]
[]
["Event / Evénement:",{"$f":"Organisateur!B4","v":"IHWT CS"}]
["Place / Lieu:",{"$f":"Organisateur!B5","v":0}]
["Date:",{"$f":"Organisateur!B6","v":0}]
["Organizer / Organisateur:",{"$f":"Organisateur!B7","v":0}]
[]
["SCORE CARD HWT TS",null,null,null,null,null,"Catalog No:"]
[null,null,null,null,null,null,"Start No:",{"$f":"RAPPORT!$L$17","v":0}]
["Dog name / Nom du chien:",{"$f":"RAPPORT!$C$17","v":0},null,null,null,null,"Born / Né le:",{"$f":"RAPPORT!$G$17","v":"00:00:00"}]
["Pedigree Reg. No:",{"$f":"RAPPORT!$I$17","v":0},null,null,"Chip / Puce:",{"$f":"RAPPORT!$J$17","v":0},"Sex:",{"$f":"RAPPORT!$F$17","v":0}]
["Owner / Propriétaire:",{"$f":"RAPPORT!$B$17","v":0},null,null,null,null,"Breed / Race:",{"$f":"RAPPORT!$E$17","v":0}]
["Handler / Conducteur:",{"$f":"RAPPORT!$A$17","v":0},null,null,null,null,"No:"]
["Exercices","Max","Minus","Score","Comments","Max. time ","Time"]
["Pen / Sortie du parc",10,null,{"$f":"IF(COUNT(C20)=0,\"\",B20-C20)","v":""}]
["Drive 150m / conduite ",15,null,""]
["Drive away 25m / poussée",15,null,""]
["Outrun 75m /recherche",15,null,""]
["Lift/ prise de possession",10,null,""]
["Fetch/ Amenée",15,null,""]
["into pen / Rentrée au parc",10,null,""]
["Behaviour / Comportement",10,null,""]
["Points total",{"$f":"SUM(B20:B27)","v":100},{"$f":"IF(COUNT(C20:C27)=0,\"-\",C20+C21+C22+C23+C24+C25+C26+C27)","v":"-"},{"$f":"IF(COUNT(D20:D27)=0,\"-\",B28-C28)","v":"-"},"Evaluation:",{"$f":"IF(D28=\"-\",\"-\",IF(D28>89.9999,\"EXCELLENT\",IF(D28>79.9999,\"TRES BON\",IF(D28>69.999,\"BON\",IF(D28>59.999,\"satisfaisant\",\" - \")))))","v":"-"}]
["Judge No",null,null,null,"Clarification by:"]
["Name+signature:",{"$f":"Organisateur!B9","v":0}]

{"sheet":"8","index":11,"n_rows":30,"n_cols":8,"rows_kept":30,"cut":false,"hidden":false,"merged":[[16,1,16,5],[17,1,17,5],[15,1,15,3],[0,1,0,7],[1,1,1,7],[6,1,6,7],[12,0,13,5],[14,1,14,5]]}
[null,"COMMISSION D'UTILISATION TROUPEAUX"]
[null,"Président : Monsieur Jean Paul Kerihuel - 7, Allée Mme de La Fayette - 29 200 - ST RENAN"]
[]
[]
[]
[]
[]
["Event / Evénement:",{"$f":"Organisateur!B4","v":"IHWT CS"}]
["Place / Lieu:",{"$f":"Organisateur!B5","v":0}]
["Date:",{"$f":"Organisateur!B6","v":0}]
["Organizer / Organisateur:",{"$f":"Organisateur!B7","v":0}]
[]
["SCORE CARD HWT TS",null,null,null,null,null,"Catalog No:"]
[null,null,null,null,null,null,"Start No:",{"$f":"RAPPORT!$L$18","v":0}]
["Dog name / Nom du chien:",{"$f":"RAPPORT!$C$18","v":0},null,null,null,null,"Born / Né le:",{"$f":"RAPPORT!$G$18","v":"00:00:00"}]
["Pedigree Reg. No:",{"$f":"RAPPORT!$I$18","v":0},null,null,"Chip / Puce:",{"$f":"RAPPORT!$J$18","v":0},"Sex:",{"$f":"RAPPORT!$F$18","v":0}]
["Owner / Propriétaire:",{"$f":"RAPPORT!$B$18","v":0},null,null,null,null,"Breed / Race:",{"$f":"RAPPORT!$E$18","v":0}]
["Handler / Conducteur:",{"$f":"RAPPORT!$A$18","v":0},null,null,null,null,"No:"]
["Exercices","Max","Minus","Score","Comments","Max. time ","Time"]
["Pen / Sortie du parc",10,null,{"$f":"IF(COUNT(C20)=0,\"\",B20-C20)","v":""}]
["Drive 150m / conduite ",15,null,""]
["Drive away 25m / poussée",15,null,""]
["Outrun 75m /recherche",15,null,""]
["Lift/ prise de possession",10,null,""]
["Fetch/ Amenée",15,null,""]
["into pen / Rentrée au parc",10,null,""]
["Behaviour / Comportement",10,null,""]
["Points total",{"$f":"SUM(B20:B27)","v":100},{"$f":"IF(COUNT(C20:C27)=0,\"-\",C20+C21+C22+C23+C24+C25+C26+C27)","v":"-"},{"$f":"IF(COUNT(D20:D27)=0,\"-\",B28-C28)","v":"-"},"Evaluation:",{"$f":"IF(D28=\"-\",\"-\",IF(D28>89.9999,\"EXCELLENT\",IF(D28>79.9999,\"TRES BON\",IF(D28>69.999,\"BON\",IF(D28>59.999,\"satisfaisant\",\" - \")))))","v":"-"}]
["Judge No",null,null,null,"Clarification by:"]
["Name+signature:",{"$f":"Organisateur!B9","v":0}]

{"sheet":"9","index":12,"n_rows":30,"n_cols":8,"rows_kept":30,"cut":false,"hidden":false,"merged":[[16,1,16,5],[17,1,17,5],[15,1,15,3],[0,1,0,7],[1,1,1,7],[6,1,6,7],[12,0,13,5],[14,1,14,5]]}
[null,"COMMISSION D'UTILISATION TROUPEAUX"]
[null,"Président : Monsieur Jean Paul Kerihuel - 7, Allée Mme de La Fayette - 29 200 - ST RENAN"]
[]
[]
[]
[]
[]
["Event / Evénement:",{"$f":"Organisateur!B4","v":"IHWT CS"}]
["Place / Lieu:",{"$f":"Organisateur!B5","v":0}]
["Date:",{"$f":"Organisateur!B6","v":0}]
["Organizer / Organisateur:",{"$f":"Organisateur!B7","v":0}]
[]
["SCORE CARD HWT TS",null,null,null,null,null,"Catalog No:"]
[null,null,null,null,null,null,"Start No:",{"$f":"RAPPORT!$L$20","v":0}]
["Dog name / Nom du chien:",{"$f":"RAPPORT!$C$20","v":0},null,null,null,null,"Born / Né le:",{"$f":"RAPPORT!$G$20","v":"00:00:00"}]
["Pedigree Reg. No:",{"$f":"RAPPORT!$I$20","v":0},null,null,"Chip / Puce:",{"$f":"RAPPORT!$J$20","v":0},"Sex:",{"$f":"RAPPORT!$F$20","v":0}]
["Owner / Propriétaire:",{"$f":"RAPPORT!$B$20","v":0},null,null,null,null,"Breed / Race:",{"$f":"RAPPORT!$E$20","v":0}]
["Handler / Conducteur:",{"$f":"RAPPORT!$A$20","v":0},null,null,null,null,"No:"]
["Exercices","Max","Minus","Score","Comments","Max. time ","Time"]
["Pen / Sortie du parc",10,null,{"$f":"IF(COUNT(C20)=0,\"\",B20-C20)","v":""}]
["Drive 150m / conduite ",15,null,""]
["Drive away 25m / poussée",15,null,""]
["Outrun 75m /recherche",15,null,""]
["Lift/ prise de possession",10,null,""]
["Fetch/ Amenée",15,null,""]
["into pen / Rentrée au parc",10,null,""]
["Behaviour / Comportement",10,null,""]
["Points total",{"$f":"SUM(B20:B27)","v":100},{"$f":"IF(COUNT(C20:C27)=0,\"-\",C20+C21+C22+C23+C24+C25+C26+C27)","v":"-"},{"$f":"IF(COUNT(D20:D27)=0,\"-\",B28-C28)","v":"-"},"Evaluation:",{"$f":"IF(D28=\"-\",\"-\",IF(D28>89.9999,\"EXCELLENT\",IF(D28>79.9999,\"TRES BON\",IF(D28>69.999,\"BON\",IF(D28>59.999,\"satisfaisant\",\" - \")))))","v":"-"}]
["Judge No",null,null,null,"Clarification by:"]
["Name+signature:",{"$f":"Organisateur!B9","v":0}]

{"sheet":"10","index":13,"n_rows":29,"n_cols":8,"rows_kept":29,"cut":false,"hidden":false,"merged":[[16,1,16,5],[17,1,17,5],[0,1,0,7],[1,1,1,7],[6,1,6,7],[12,0,13,5],[14,1,14,5],[15,1,15,3]]}
[null,"COMMISSION D'UTILISATION TROUPEAUX"]
[null,"Président : Monsieur Jean Paul Kerihuel - 7, Allée Mme de La Fayette - 29 200 - ST RENAN"]
[]
[]
[]
[]
[]
["Event / Evénement:",{"$f":"Organisateur!B4","v":"IHWT CS"}]
["Place / Lieu:",{"$f":"Organisateur!B5","v":0}]
["Date:",{"$f":"Organisateur!B6","v":0}]
["Organizer / Organisateur:",{"$f":"Organisateur!B7","v":0}]
[]
["SCORE CARD HWT TS",null,null,null,null,null,"Catalog No:"]
[null,null,null,null,null,null,"Start No:",{"$f":"RAPPORT!$L$21","v":0}]
["Dog name / Nom du chien:",{"$f":"RAPPORT!$C$21","v":0},null,null,null,null,"Born / Né le:",{"$f":"RAPPORT!$G$21","v":"00:00:00"}]
["Pedigree Reg. No:",{"$f":"RAPPORT!$I$21","v":0},null,null,"Chip / Puce:",{"$f":"RAPPORT!$J$21","v":0},"Sex:",{"$f":"RAPPORT!$F$21","v":0}]
["Owner / Propriétaire:",{"$f":"RAPPORT!$B$21","v":0},null,null,null,null,"Breed / Race:",{"$f":"RAPPORT!$E$21","v":0}]
["Handler / Conducteur:",{"$f":"RAPPORT!$A$21","v":0},null,null,null,null,"No:"]
["Exercices","Max","Minus","Score","Comments","Max. time ","Time"]
["Pen / Sortie du parc",10,null,{"$f":"IF(COUNT(C20)=0,\"\",B20-C20)","v":""}]
["Drive 150m / conduite ",15,null,""]
["Drive away 25m / poussée",15,null,""]
["Outrun 75m /recherche",15,null,""]
["Lift/ prise de possession",10,null,""]
["Fetch/ Amenée",15,null,""]
["into pen / Rentrée au parc",10,null,""]
["Behaviour / Comportement",10,null,""]
["Points total",{"$f":"SUM(B20:B27)","v":100},{"$f":"IF(COUNT(C20:C27)=0,\"-\",C20+C21+C22+C23+C24+C25+C26+C27)","v":"-"},{"$f":"IF(COUNT(D20:D27)=0,\"-\",B28-C28)","v":"-"},"Evaluation:",{"$f":"IF(D28=\"-\",\"-\",IF(D28>89.9999,\"EXCELLENT\",IF(D28>79.9999,\"TRES BON\",IF(D28>69.999,\"BON\",IF(D28>59.999,\"satisfaisant\",\" - \")))))","v":"-"}]
["Name+signature:",{"$f":"Organisateur!B9","v":0}]